Workbook

Sheet Vejledning
A1: Vejledning til regneark, lønberegning.
A3: Regnearket anvendes til kontrol af lønsedler . Man skal bruge sin lønseddel og opgaveoversigten
A4: Regnearket kan anvendes af lærere og børnehaveklasseledere ansat på folkeskoler i Odense.
A5: Medlemmer ansat andre steder kan få hjælp til at kontrollere deres lønsedler i Odense Lærerforening
A8: Find det relevante ark i regnearket
A9: (Lærere Ny Løn, Lærere OK ansatte anc. Løn, Lærere tjenestemænd,
A10: Børnehaveklasseledere Ny Løn, Børnehaveklasseledere anc. Løn,
A11: Børnehaveklasseledere tjenestemænd)
A13: Der kan kun indtastes i de gule felter!
A15: Beskæftigelsesgrad indtastes med ugentligt timetal (fremgår af lønsedlen)
A16: Grundløn fremkommer automatisk, tillæg for anciennitet skal indtastes med 1 ved relevant anciennitetstillæg (fremgår af lønsedlen)
A17: Forhåndsaftalt funktions- og kvalifikationsløn indtastes med 1 ud for funktionen (kvalifikationen)
A18: Ved delt funktion anvendes decimaltal.
A19: Odensetillæg fremgår automatisk
A21: Skoleaftaler og andet, der ikke er nævnt i regnearket indtastes med det månedlige beløb, der fremgår af lønsedlen.
A22: Der kan evt. indtastes navn på disse tillæg.
A24: Undervisningstillæg, specialundervisningstillæg m.m. indtastes i de relevante felter med det årlige undervisningstimetal
A25: Timetallet fremgår af opgaveoversigten
A27: Månedslønnen fremkommer automatisk og er sammenlignelig med lønsedlen
A29: Bemærk: Der kan fremkomme øreafvigelser p.g.a. afrunding.
A31: Arbejdstidsbestemte tillæg udbetales konkret og fremgår ikke af lønberegneren
A33: Kommentarer eller rettelser er velkomne, kontakt Bo Tryggedsson, Odense Lærerforening.

Sheet Lærere Ny Løn
A1: Lønberegning niveau | C1: =satser!F1 -> 01.01.2017
A2: Lærere Ny løn
A5: Navn:
A6: Måned
A8: Beskæftigelsesgrad (indsæt ugentligt timetal) | B8: 37
C9: Månedsløn
A10: Grundløn trin 31 | B10: 31 | C10: =satser!B11*B8/37 -> 27049.5
A11: Grundlønstillæg - lærer | C11: =IF(B14=1,"",satser!I3*B8/37) -> 336.1615
A12: Lærere på grundløn | C12: =IF((B12+B13+B14)>1,"Fejl: kun et tillæg",IF(B12=1,satser!D12*B8/37,"")) -> 
A13: Anciennitetstillæg (trin 31-35) | C13: =IF((B12+B13+B14)>1,"Fejl: kun et tillæg",IF(B13=1,satser!D15*B8/37,"")) -> 
A14: Anciennitetstillæg (trin 31-40) | C14: =IF((B12+B13+B14)>1,"Fejl: kun et tillæg",IF(B14=1,satser!D20*B8/37,"")) -> 
A15: Anciennitetstillæg - lærer | C15: =IF(AND(B15=1,B14=1),satser!I4*B8/37,"") -> 
A16: Undervisertillæg | C16: =satser!I9*B8/37 -> 1456.699833
A18: Funktions- og kvalifikationsløn: Tast 1 i det gule felt, hvis omfattet:
A19: Nyt Odense tillæg | C19: =satser!I20*B8/37 -> 1131.74
A20: Mange 2-sprogede elever | C20: =(IF(B20>1,"Fejl:kun et tillæg",IF(B20>0,B20*satser!I21,""))) -> 
A21: Kl. lærer/bh.kl.leder >27 | C21: =(IF(B21>1,"Fejl:kun et tillæg",IF(B21>0,B21*satser!I22,""))) -> 
A22: Kontaktperson til elevråd | C22: =(IF(B22>1,"Fejl:kun et tillæg",IF(B22>0,B22*satser!I23,""))) -> 
A23: Obs-klasser | C23: =(IF(B23>1,"Fejl:kun et tillæg",IF(B23>0,B23*satser!I24*B8/37,""))) -> 
A24: Flere/skiftende arbejdssteder | C24: =(IF(B24>1,"Fejl:kun et tillæg",IF(B24>0,B24*satser!I25*B8/37,""))) -> 
A25: TR-tillæg | C25: =(IF(B25>1,"Fejl:kun et tillæg",IF(B25>0,B25*satser!I26,""))) -> 
A26: Valgområde - mere end 35 ansatte | C26: =(IF(B26>1,"Fejl:kun et tillæg",IF(B26>0,B26*satser!I27,""))) -> 
A27: AMR funktion | C27: =(IF(B27>1,"Fejl:kun et tillæg",IF(B27>0,B27*satser!I28,""))) -> 
A28: Spec-uv skolebørn | C28: =(IF(B28>1,"Fejl:kun et tillæg",IF(B28>0,B28*satser!I29,""))) -> 
A30: Specialv./erfaring fra Vollsmose skoler | C30: =(IF(B30>1,"Fejl:kun et tillæg",IF(B30>0,B30*satser!I31*B8/37,""))) -> 
A31: Pæd. Diplomudd./Masterudd. | C31: =(IF(B31>1,"Fejl:kun et tillæg",IF(B31>0,B31*satser!I32*B8/37,""))) -> 
A33: Undervisnings- og specialundervisningstillæg m.m. Indsæt tal fra opgaveoversigten i de gule felter
A34: I alt undervisning
A35: uv-tillæg > 750 | B35: =(IF((B34/B8*37)>750,((B34/B8*37)-750)*B8/37,0))/12 -> 0 | C35: =IF(B35>0,B35*satser!I36,"") -> 
A36: tale/høre tillæg | C36: =IF(B36>0,(B36/12)*satser!I37,"") -> 
A37: Spec-skole uv-tillæg | C37: =IF(B37>0,(B37/12)*satser!I38,"") -> 
A39: Andre tillæg (fx skoleaftaler) Indtast beløb fra lønseddel
A43: Fast løn i alt | C43: =SUM(C10:C42) -> 29974.10133

Sheet Lærere OK ansatte anc.løn
A1: Lønberegning niveau | C1: =satser!F1 -> 01.01.2017
A2: Lærere OK ansatte anc. Løn
A5: Navn:
A6: Måned
A8: Beskæftigelsesgrad (indsæt ugentligt timetal) | B8: 37
C10: Månedsløn
A11: Grundløn trin 43 | B11: 43 | C11: =satser!B23*B8/37 -> 33151.17
A12: Stillingstillæg - lærer | C12: =satser!I5*B8/37 -> 1456.699833
A13: Undervisertillæg | C13: =satser!I10*B8/37 -> 616.2960833
A18: Funktions- og kvalifikationsløn: Tast 1 i det gule felt, hvis omfattet:
A19: Nyt Odense tillæg | C19: =satser!I20*B8/37 -> 1131.74
A20: Mange 2-sprogede elever | C20: =(IF(B20>1,"Fejl:kun et tillæg",IF(B20>0,B20*satser!J21,""))) -> 
A21: Kl. lærer/bh.kl.leder >27 | C21: =(IF(B21>1,"Fejl:kun et tillæg",IF(B21>0,B21*satser!J22,""))) -> 
A22: Kontaktperson til elevråd | C22: =(IF(B22>1,"Fejl:kun et tillæg",IF(B22>0,B22*satser!J23,""))) -> 
A23: Obs-klasser | C23: =(IF(B23>1,"Fejl:kun et tillæg",IF(B23>0,B23*satser!J24*B8/37,""))) -> 
A24: Flere/skiftende arbejdssteder | C24: =(IF(B24>1,"Fejl:kun et tillæg",IF(B24>0,B24*satser!J25*B8/37,""))) -> 
A25: TR-tillæg | C25: =(IF(B25>1,"Fejl:kun et tillæg",IF(B25>0,B25*satser!J26,""))) -> 
A26: Valgområde - mere end 35 ansatte | C26: =(IF(B26>1,"Fejl:kun et tillæg",IF(B26>0,B26*satser!J27,""))) -> 
A27: AMR funktion | C27: =(IF(B27>1,"Fejl:kun et tillæg",IF(B27>0,B27*satser!J28,""))) -> 
A28: Spec-uv skolebørn | C28: =(IF(B28>1,"Fejl:kun et tillæg",IF(B28>0,B28*satser!J29,""))) -> 
A30: Specialv./erfaring fra Vollsmose skoler | C30: =(IF(B30>1,"Fejl:kun et tillæg",IF(B30>0,B30*satser!J31*B8/37,""))) -> 
A31: Pæd. Diplomudd./Masterudd. | C31: =(IF(B31>1,"Fejl:kun et tillæg",IF(B31>0,B31*satser!J32*B8/37,""))) -> 
A33: Undervisnings- og specialundervisningstillæg m.m. Indsæt tal fra opgaveoversigten i de gule felter
A34: I alt undervisning
A35: uv-tillæg > 750 | B35: =(IF((B34/B8*37)>750,((B34/B8*37)-750)*B8/37,0))/12 -> 0 | C35: =IF(B35>0,B35*satser!J36,"") -> 
A36: tale/høre tillæg | C36: =IF(B36>0,(B36/12)*satser!J37,"") -> 
A37: Spec-skole uv-tillæg | C37: =IF(B37>0,(B37/12)*satser!J38,"") -> 
A39: Andre tillæg (fx skoleaftaler) Indtast beløb fra lønseddel
A43: Fast løn i alt | C43: =SUM(C10:C42) -> 36355.90592

Sheet Lærere Tjenestemænd
A1: Lønberegning niveau | C1: =satser!F1 -> 01.01.2017
A2: Lærere Tjenestemænd
A5: Navn:
A6: Måned
A8: Beskæftigelsesgrad (indsæt ugentligt timetal) | B8: 37
C10: Månedsløn
A11: Grundløn trin 43 | B11: 43 | C11: =satser!B23*B8/37 -> 33151.17
A12: Stillingstillæg - lærer | C12: =satser!I5*B8/37 -> 1456.699833
A13: Pension - stillingstillæg lærer | C13: =IF(B13=1,satser!I6,"") -> 
A14: Undervisertillæg | C14: =satser!I10*B8/37 -> 616.2960833
A18: Funktions- og kvalifikationsløn: Tast 1 i det gule felt, hvis omfattet:
A19: Nyt Odense tillæg | C19: =satser!I20*B8/37 -> 1131.74
A20: Mange 2-sprogede elever | C20: =(IF(B20>1,"Fejl:kun et tillæg",IF(B20>0,B20*satser!J21,""))) -> 
A21: Kl. lærer/bh.kl.leder >27 | C21: =(IF(B21>1,"Fejl:kun et tillæg",IF(B21>0,B21*satser!J22,""))) -> 
A22: Kontaktperson til elevråd | C22: =(IF(B22>1,"Fejl:kun et tillæg",IF(B22>0,B22*satser!J23,""))) -> 
A23: Obs-klasser | C23: =(IF(B23>1,"Fejl:kun et tillæg",IF(B23>0,B23*satser!J24*B8/37,""))) -> 
A24: Flere/skiftende arbejdssteder | C24: =(IF(B24>1,"Fejl:kun et tillæg",IF(B24>0,B24*satser!J25*B8/37,""))) -> 
A25: TR-tillæg | C25: =(IF(B25>1,"Fejl:kun et tillæg",IF(B25>0,B25*satser!J26,""))) -> 
A26: Valgområde - mere end 35 ansatte | C26: =(IF(B26>1,"Fejl:kun et tillæg",IF(B26>0,B26*satser!J27,""))) -> 
A27: AMR funktion | C27: =(IF(B27>1,"Fejl:kun et tillæg",IF(B27>0,B27*satser!J28,""))) -> 
A28: Spec-uv skolebørn | C28: =(IF(B28>1,"Fejl:kun et tillæg",IF(B28>0,B28*satser!J29,""))) -> 
A30: Specialv./erfaring fra Vollsmose skoler | C30: =(IF(B30>1,"Fejl:kun et tillæg",IF(B30>0,B30*satser!J31*B8/37,""))) -> 
A31: Pæd. Diplomudd./Masterudd. | C31: =(IF(B31>1,"Fejl:kun et tillæg",IF(B31>0,B31*satser!D24*B8/37,""))) -> 
A33: Undervisnings- og specialundervisningstillæg m.m. Indsæt tal fra opgaveoversigten i de gule felter
A34: I alt undervisning
A35: uv-tillæg > 750 | B35: =(IF((B34/B8*37)>750,((B34/B8*37)-750)*B8/37,0))/12 -> 0 | C35: =IF(B35>0,B35*satser!J36,"") -> 
A36: tale/høre tillæg | C36: =IF(B36>0,(B36/12)*satser!J37,"") -> 
A37: Spec-skole uv-tillæg | C37: =IF(B37>0,(B37/12)*satser!J38,"") -> 
A39: Andre tillæg (fx skoleaftaler) Indtast beløb fra lønseddel
A43: Fast løn i alt | C43: =SUM(C10:C42) -> 36355.90592

Sheet Bh. kl. ledere Ny Løn
A1: Lønberegning niveau | C1: =satser!F1 -> 01.01.2017
A2: Børnehaveklasseledere Ny løn
A5: Navn:
A6: Måned
A8: Beskæftigelsesgrad (indsæt ugentligt timetal) | B8: 37
C9: Månedsløn
A10: Grundløn trin 28 | B10: 28 | C10: =satser!B8*B8/37 -> 25793.92
A11: Grundlønstillæg - børnehaveklasseleder | C11: =IF(B14=1,"",satser!I7*B8/37) -> 224.1076667
A13: Anciennitetstillæg (trin 28-31) | C13: =IF((B13+B14)>1,"Fejl: kun et tillæg",IF(B13=1,satser!D11*B8/37,"")) -> 
A14: Anciennitetstillæg (trin 28-33) | C14: =IF((B12+B13+B14)>1,"Fejl: kun et tillæg",IF(B14=1,satser!D13*B8/37,"")) -> 
A15: Anciennitetstillæg - børnehaveklasseleder | C15: =IF(AND(B15=1,B14=1),satser!I8*B8/37,"") -> 
A16: Undervisertillæg | C16: =satser!I11*B8/37 -> 1725.629033
A18: Funktions- og kvalifikationsløn: Tast 1 i det gule felt, hvis omfattet:
A19: Nyt Odense tillæg | C19: =satser!I20*B8/37 -> 1131.74
A20: Mange 2-sprogede elever | C20: =(IF(B20>1,"Fejl:kun et tillæg",IF(B20>0,B20*satser!I21,""))) -> 
A21: Kl. lærer/bh.kl.leder >27 | C21: =(IF(B21>1,"Fejl:kun et tillæg",IF(B21>0,B21*satser!I22,""))) -> 
A22: Kontaktperson til elevråd | C22: =(IF(B22>1,"Fejl:kun et tillæg",IF(B22>0,B22*satser!I23,""))) -> 
A23: Obs-klasser | C23: =(IF(B23>1,"Fejl:kun et tillæg",IF(B23>0,B23*satser!I24*B8/37,""))) -> 
A24: Flere/skiftende arbejdssteder | C24: =(IF(B24>1,"Fejl:kun et tillæg",IF(B24>0,B24*satser!I25*B8/37,""))) -> 
A25: TR-tillæg | C25: =(IF(B25>1,"Fejl:kun et tillæg",IF(B25>0,B25*satser!I26,""))) -> 
A26: Valgområde - mere end 35 ansatte | C26: =(IF(B26>1,"Fejl:kun et tillæg",IF(B26>0,B26*satser!I27,""))) -> 
A27: AMR funktion | C27: =(IF(B27>1,"Fejl:kun et tillæg",IF(B27>0,B27*satser!I28,""))) -> 
A28: Spec-uv skolebørn | C28: =(IF(B28>1,"Fejl:kun et tillæg",IF(B28>0,B28*satser!I29,""))) -> 
A30: Specialv./erfaring fra Vollsmose skoler | C30: =(IF(B30>1,"Fejl:kun et tillæg",IF(B30>0,B30*satser!I31*B8/37,""))) -> 
A31: Pæd. Diplomudd./Masterudd. | C31: =(IF(B31>1,"Fejl:kun et tillæg",IF(B31>0,B31*satser!I32*B8/37,""))) -> 
A33: Undervisnings- og specialundervisningstillæg m.m. Indsæt tal fra opgaveoversigten i de gule felter
A34: I alt undervisning
A35: uv-tillæg > 836 | B35: =(IF((B34/B8*37)>835,((B34/B8*37)-835)*B8/37,0))/12 -> 0 | C35: =IF(B35>0,B35*satser!I36,"") -> 
A36: tale/høre tillæg | C36: =IF(B36>0,(B36/12)*satser!I37,"") -> 
A37: Spec-skole uv-tillæg | C37: =IF(B37>0,(B37/12)*satser!I38,"") -> 
A38: to-sprogede elever | C38: =IF(B38>0,(B38/12)*satser!I40,"") -> 
A40: Andre tillæg (fx skoleaftaler) Indtast beløb fra lønseddel
A44: Fast løn i alt | C44: =SUM(C10:C43) -> 28875.3967

Sheet Bh. kl. ledere Anc. løn
A1: Lønberegning niveau | C1: =satser!F1 -> 01.01.2017
A2: Børnehaveklasseledere anc. Løn
A5: Navn:
A6: Måned
A8: Beskæftigelsesgrad (indsæt ugentligt timetal) | B8: 37
C9: Månedsløn
A10: Grundløn trin 36 | B10: 36 | C10: =satser!B16*B8/37 -> 29320.58
A11: Trintillæg | C11: =satser!I13*B8/37 -> 515.4476333
A12: Undervisertillæg | C12: =satser!I12*B8/37 -> 885.2252833
A19: Funktions- og kvalifikationsløn: Tast 1 i det gule felt, hvis omfattet:
A20: Nyt Odense tillæg | C20: =satser!I20*B8/37 -> 1131.74
A21: Mange 2-sprogede elever | C21: =(IF(B21>1,"Fejl:kun et tillæg",IF(B21>0,B21*satser!J21,""))) -> 
A22: Kl. lærer/bh.kl.leder >27 | C22: =(IF(B22>1,"Fejl:kun et tillæg",IF(B22>0,B22*satser!J22,""))) -> 
A23: Kontaktperson til elevråd | C23: =(IF(B23>1,"Fejl:kun et tillæg",IF(B23>0,B23*satser!J23,""))) -> 
A24: Obs-klasser | C24: =(IF(B24>1,"Fejl:kun et tillæg",IF(B24>0,B24*satser!J24*B8/37,""))) -> 
A25: Flere/skiftende arbejdssteder | C25: =(IF(B25>1,"Fejl:kun et tillæg",IF(B25>0,B25*satser!J25*B8/37,""))) -> 
A26: TR-tillæg | C26: =(IF(B26>1,"Fejl:kun et tillæg",IF(B26>0,B26*satser!J26,""))) -> 
A27: Valgområde - mere end 35 ansatte | C27: =(IF(B27>1,"Fejl:kun et tillæg",IF(B27>0,B27*satser!J27,""))) -> 
A28: AMR funktion | C28: =(IF(B28>1,"Fejl:kun et tillæg",IF(B28>0,B28*satser!J28,""))) -> 
A29: Spec-uv skolebørn | C29: =(IF(B29>1,"Fejl:kun et tillæg",IF(B29>0,B29*satser!J29,""))) -> 
A31: Specialv./erfaring fra Vollsmose skoler | C31: =(IF(B31>1,"Fejl:kun et tillæg",IF(B31>0,B31*satser!J31*B8/37,""))) -> 
A32: Pæd. Diplomudd./Masterudd. | C32: =(IF(B32>1,"Fejl:kun et tillæg",IF(B32>0,B32*satser!J32*B8/37,""))) -> 
A34: Undervisnings- og specialundervisningstillæg m.m. Indsæt tal fra opgaveoversigten i de gule felter
A35: I alt undervisning
A36: uv-tillæg > 836 | B36: =(IF((B35/B8*37)>835,((B35/B8*37)-835)*B8/37,0))/12 -> 0 | C36: =IF(B36>0,B36*satser!J36,"") -> 
A37: tale/høre tillæg | C37: =IF(B37>0,(B37/12)*satser!J37,"") -> 
A38: Spec-skole uv-tillæg | C38: =IF(B38>0,(B38/12)*satser!J38,"") -> 
A39: to-sprogede elever | C39: =IF(B39>0,(B39/12)*satser!J40,"") -> 
A41: Andre tillæg (fx skoleaftaler) Indtast beløb fra lønseddel
A45: Fast løn i alt | C45: =SUM(C10:C44) -> 31852.99292

Sheet Bh. kl. ledere tjenestemænd
A1: Lønberegning niveau | C1: =satser!F1 -> 01.01.2017
A2: Børnehaveklasseledere tjenestemænd
A5: Navn:
A6: Måned
A8: Beskæftigelsesgrad (indsæt ugentligt timetal) | B8: 37
C9: Månedsløn
A10: Grundløn trin 36 | B10: 36 | C10: =satser!B16*B8/37 -> 29320.58
A11: Trintillæg | C11: =satser!I13*B8/37 -> 515.4476333
A12: Undervisertillæg | C12: =satser!I12*B8/37 -> 885.2252833
A19: Funktions- og kvalifikationsløn: Tast 1 i det gule felt, hvis omfattet:
A20: Nyt Odense tillæg | C20: =satser!I20*B8/37 -> 1131.74
A21: Mange 2-sprogede elever | C21: =(IF(B21>1,"Fejl:kun et tillæg",IF(B21>0,B21*satser!J21,""))) -> 
A22: Kl. lærer/bh.kl.leder >27 | C22: =(IF(B22>1,"Fejl:kun et tillæg",IF(B22>0,B22*satser!J22,""))) -> 
A23: Kontaktperson til elevråd | C23: =(IF(B23>1,"Fejl:kun et tillæg",IF(B23>0,B23*satser!J23,""))) -> 
A24: Obs-klasser | C24: =(IF(B24>1,"Fejl:kun et tillæg",IF(B24>0,B24*satser!J24*B8/37,""))) -> 
A25: Flere/skiftende arbejdssteder | C25: =(IF(B25>1,"Fejl:kun et tillæg",IF(B25>0,B25*satser!J25*B8/37,""))) -> 
A26: TR-tillæg | C26: =(IF(B26>1,"Fejl:kun et tillæg",IF(B26>0,B26*satser!J26,""))) -> 
A27: Valgområde - mere end 35 ansatte | C27: =(IF(B27>1,"Fejl:kun et tillæg",IF(B27>0,B27*satser!J27,""))) -> 
A28: AMR funktion | C28: =(IF(B28>1,"Fejl:kun et tillæg",IF(B28>0,B28*satser!J28,""))) -> 
A29: Spec-uv skolebørn | C29: =(IF(B29>1,"Fejl:kun et tillæg",IF(B29>0,B29*satser!J29,""))) -> 
A31: Specialv./erfaring fra Vollsmose skoler | C31: =(IF(B31>1,"Fejl:kun et tillæg",IF(B31>0,B31*satser!J31*B8/37,""))) -> 
A32: Pæd. Diplomudd./Masterudd. | C32: =(IF(B32>1,"Fejl:kun et tillæg",IF(B32>0,B32*satser!D17*B8/37,""))) -> 
A34: Undervisnings- og specialundervisningstillæg m.m. Indsæt tal fra opgaveoversigten i de gule felter
A35: I alt undervisning
A36: uv-tillæg > 836 | B36: =(IF((B35/B8*37)>835,((B35/B8*37)-835)*B8/37,0))/12 -> 0 | C36: =IF(B36>0,B36*satser!J36,"") -> 
A37: tale/høre tillæg | C37: =IF(B37>0,(B37/12)*satser!J37,"") -> 
A38: Spec-skole uv-tillæg | C38: =IF(B38>0,(B38/12)*satser!J38,"") -> 
A39: to-sprogede elever | C39: =IF(B39>0,(B39/12)*satser!J40,"") -> 
A41: Andre tillæg (fx skoleaftaler) Indtast beløb fra lønseddel
A45: Fast løn i alt | C45: =SUM(C10:C44) -> 31852.99292

Sheet satser
A1: Satser pr. | F1: 01.01.2017
G2: Grundbeløb | I2: Månedligt beløb pr. | J2: =F1 -> 01.01.2017
F3: Grundlønstillæg - lærer | G3: 3000 | I3: =G3*C27/12 -> 336.1615
F4: Anciennitetstillæg - lærer | G4: 10000 | I4: =G4*C27/12 -> 1120.538333
F5: Stillingstillæg - lærer | H5: 13000 | I5: =H5*C27/12 -> 1456.699833
A6: Løntrin | B6: Pr. måned | C6: Anciennitetstillæg | F6: Pension - stillingstilæg lærer | H6: 2202 | I6: =H6*C27/12 -> 246.742541 | J6: Beløbet er 17,3% af 13.000 fratrukket særlig ferie
A7: 27 | B7: 25392.25 | F7: Grundlønstillæg - børnehaveklasseleder | G7: 2000 | I7: =G7*C27/12 -> 224.1076667
A8: 28 | B8: 25793.92 | F8: Anciennitetstillæg - børnehaveklasseleder | G8: 7000 | I8: =G8*C27/12 -> 784.3768333
A9: 29 | B9: 26204 | F9: Undervisertillæg, lærere Ny Løn | G9: 13000 | I9: =G9*C27/12 -> 1456.699833
A10: 30 | B10: 26622.17 | F10: Undervisertillæg, lærere Anciennitetsløn | G10: 5500 | I10: =G10*C27/12 -> 616.2960833
A11: 31 | B11: 27049.5 | C11: 28 . 31 | D11: =B11-B8 -> 1255.58 | F11: Undervisertillæg, børehaveklasseledere, Ny Løn | G11: 15400 | I11: =G11*C27/12 -> 1725.629033
A12: 32 | B12: 27485.42 | C12: 31 - 32 | D12: =B12-B11 -> 435.92 | F12: Undervisertillæg, børehaveklasseledere, Anciennitetsløn | G12: 7900 | I12: =G12*C27/12 -> 885.2252833
A13: 33 | B13: 27930.08 | C13: 28 - 33 | D13: =B13-B8 -> 2136.16 | F13: Trintillæg børnehaveklasseledere | G13: 4600 | I13: =G13*C27/12 -> 515.4476333
A14: 34 | B14: 28384.5
A15: 35 | B15: 28847.58 | C15: 31 - 35 | D15: =B15-B11 -> 1798.08
A16: 36 | B16: 29320.58
A17: 37 | B17: 29802.83 | C17: 36 - 37 | D17: =B17-B16 -> 482.25
A18: 38 | B18: 30317.33 | G18: Grundbeløb | I18: Månedligt beløb pr. | J18: =F1 -> 01.01.2017
A19: 39 | B19: 30829.67 | F19: Funktions- og kvalifikationsløn: | G19: Ny Løn | H19: Anciennitetsløn | I19: Ny Løn | J19: Anciennitetsløn
A20: 40 | B20: 31352.75 | C20: 31 - 40 | D20: =B20-B11 -> 4303.25 | F20: Nyt Odense tillæg | G20: 10100 | H20: 10100 | I20: =ROUND(G20*$C$27/12,2) -> 1131.74 | J20: =ROUND(H20*$C$27/12,2) -> 1131.74
A21: 41 | B21: 31886.25 | F21: Mange 2-sprogede elever | G21: 4200 | H21: 3100 | I21: 470.63 | J21: 347.37
A22: 42 | B22: 32430.42 | F22: Kl. lærer/bh.kl.leder >27 | G22: 4200 | H22: 3100 | I22: 470.63 | J22: 347.37
A23: 43 | B23: 33151.17 | F23: Kontaktperson til elevråd | G23: 3100 | H23: 3100 | I23: 347.37 | J23: 347.37
A24: 44 | B24: 33891.83 | C24: 43 - 44 | D24: =B24-B23 -> 740.66 | F24: Obs-klasser | G24: 4200 | H24: 4200 | I24: 470.63 | J24: 470.63
F25: Flere/skiftende arbejdssteder | G25: 3100 | H25: 3100 | I25: 347.37 | J25: 347.37
F26: TR-tillæg | G26: 5000 | H26: 5000 | I26: 560.27 | J26: 560.27
A27: Reguleringsfaktor: | C27: 1.344646 | F27: valgområde - mere end 35 ansatte | G27: 1000 | H27: 1000 | I27: 112.05 | J27: 112.05
F28: AMR funktion | G28: 5000 | H28: 5000 | I28: 560.27 | J28: 560.27
F29: Spec-uv skolebørn | G29: 18600 | H29: 18600 | I29: 2084.2 | J29: 2084.2
F31: Specialv./erfaring fra Vollsmose skoler | G31: 3600 | H31: 3600 | I31: =ROUND(G31*$C$27/12,2) -> 403.39 | J31: =ROUND(H31*$C$27/12,2) -> 403.39
F32: Pæd. Diplomudd./Masterudd. | G32: 7500 | H32: 7500 | I32: =ROUND(G32*$C$27/12,2) -> 840.4 | J32: =ROUND(H32*$C$27/12,2) -> 840.4 | K32: Tjenestemænd dog 1 trin
F35: Undervisnings- og specialundervisningstillæg m.m.
F36: uv-tillæg > 750 | G36: 90 | H36: 90 | I36: =ROUND(G36*$C$27,2) -> 121.02 | J36: 121.02
F37: tale/høre tillæg | G37: 25.84 | H37: 25.84 | I37: 34.75 | J37: 34.75
F38: Spec-skole uv-tillæg | G38: 18.92 | H38: 18.92 | I38: 25.44 | J38: 25.44
F40: to-sprogede elever | G40: 18.92 | H40: 18.92 | I40: =ROUND(G40*$C$27,2) -> 25.44 | J40: =ROUND(H40*$C$27,2) -> 25.44
